Cogmind - Beta 16.1 @@@ ROGUE MODE // 2026.04.04 @ 20:18:46 Player: KURIIRI Result: Self-destructed Performance ------------- Evolutions (5) 2500 Regions Visited (13) 2600 Robots Destroyed (189) 945 Value Destroyed (7674) 7674 Prototype IDs (35) 700 Alien Tech Used (0) 0 Bonus (3453) 3453 TOTAL SCORE: 17872 Bonus ------- High Alert Combat Kills 606 Follower Combat Kills 1067 Entered Garrisons 200 Used RIF Installer 500 Registered with UFD 300 Met Optimus in HQ 500 Met Data Miner 300 Friendly Fire -20 Cogmind --------- Core Integrity 885/1000 Matter 3/300 Energy 100/100 System Corruption 13% Temperature Cool (0) Movement Immobile (Siege) Location -5/Waste Parts ------- > --- POWER (1) -------- (None) > --- PROPULSION (4) --- Heavy Treads Armored Huge Wheel > --- UTILITY (6) ------ Advanced Cooling System > --- WEAPON (6) ------- KE Penetrator > --- INVENTORY (5) ---- Heavy Treads Heavy Treads Advanced Salvage Targeting Computer Peak State ------------ > --- POWER ------------ Antimatter Reactor > --- PROPULSION ------- Heavy Treads Armored Huge Wheel > --- UTILITY ---------- Advanced Cooling System Huge Storage Unit Damper Plating > --- WEAPON ----------- Improved Arc Projector Enhanced Autogun Gauss Rifle Heavy Machine Gun KE Penetrator KE Penetrator > --- INVENTORY -------- Reinforced Deuterium Engine Light Angular Momentum Engine Improved Treads Heavy Treads Heavy Treads Matter Compressor IFF Parser Seismic Detector Advanced Salvage Targeting Computer Improved Kinecellerator Improved Kinecellerator Improved Transmission Jammer Remote Shield Relay Coupler [NC] Relay Coupler [NC] Matter Neutralizer Heavy Gauss Cannon Long-range Missile Launcher Improved Remote Datajack Improved Plasma Cutter Multitool Power Sword [Rating: 100] Favorites ----------- Power Light Antimatter Reactor Engine Subdweller Power Source Power Core Neutrino Core Reactor Light Antimatter Reactor Propulsion Compact Wheel Treads Heavy Siege Treads Leg Carbon-fiber Leg Wheel Compact Wheel Utility Huge Storage Unit Device Improved Cooling System Storage Huge Storage Unit Processor Improved Target Analyzer Hackware Hacking Suite Protection Hardened Medium Armor Plating Weapon Gauss Rifle Energy Gun Heavy Laser Energy Cannon Subdweller Beam Cannon Ballistic Gun Gauss Rifle Launcher Long-range Missile Launcher Special Weapon Remote Datajack Impact Weapon Great Maul Slashing Weapon Power Sword Build | -11 -10 -10 -8 -8 -6 -6 -6 -6 -6 -6 -5 -5 -5 ------- Run | Yrd Mat Sub Rec Scr Fac Gar Fac Low Low Dat Pro Fac Was Slots Evolved 10 | . . . . . 8 . . . . . . 2 . Power . | . . . . . . . . . . . . . . Propulsion 2 | . . . . . 2 . . . . . . . . Utility 4 | . . . . . 2 . . . . . . 2 . Weapon 4 | . . . . . 4 . . . . . . . . Parts Attached 127 | 3 7 20 3 3 15 17 20 4 3 . 4 22 6 Power 12 | . 1 2 . 2 1 . 3 . . . 1 1 1 Engine 9 | . 1 2 . 2 1 . 2 . . . 1 . . Core 1 | . . . . . . . . . . . . 1 . Reactor 2 | . . . . . . . 1 . . . . . 1 Propulsion 25 | 2 . 7 . . 3 5 5 . . . . 2 1 Treads 10 | 2 . 1 . . 1 2 2 . . . . 1 1 Leg 6 | . . . . . 2 3 1 . . . . . . Wheel 9 | . . 6 . . . . 2 . . . . 1 . Hover . | . . . . . . . . . . . . . . Flight . | . . . . . . . . . . . . . . Utility 38 | 1 3 3 2 . 4 4 4 2 . . 2 9 4 Device 14 | 1 1 1 . . 2 . . 1 . . 1 5 2 Storage 2 | . 1 1 . . . . . . . . . . . Processor 5 | . . . . . 2 . 1 . . . . 1 1 Hackware 4 | . . . 1 . . . 1 . . . . 2 . Protection 13 | . 1 1 1 . . 4 2 1 . . 1 1 1 Artifact . | . . . . . . . . . . . . . . Weapon 52 | . 3 8 1 1 7 8 8 2 3 . 1 10 . Energy Gun 10 | . 1 4 . . 1 . 2 1 . . . 1 . Energy Cannon 4 | . 1 2 . . . 1 . . . . . . . Ballistic Gun 33 | . 1 1 1 1 6 6 5 1 3 . . 8 . Ballistic Cannon . | . . . . . . . . . . . . . . Launcher 1 | . . . . . . . . . . . . 1 . Special Weapon 2 | . . 1 . . . . 1 . . . . . . Impact Weapon 1 | . . . . . . 1 . . . . . . . Slashing Weapon 1 | . . . . . . . . . . . 1 . . Piercing Weapon . | . . . . . . . . . . . . . . Special Melee Weapon . | . . . . . . . . . . . . . . Unidentified Prototypes 1 | . . . . . . . . 1 . . . . . Corrupted Parts 1 | . . . . . . . . . . . . . 1 System Corruption 2 | . . . . . . . . . . . . . 2 Parts Lost 45 | . . 5 1 . 3 10 11 . 1 . 4 6 4 Power 5 | . . 1 . . . . 2 . . . 1 . 1 Propulsion 9 | . . 3 . . 1 3 1 . . . . . 1 Utility 11 | . . 1 1 . . 4 1 . . . . 3 1 Weapon 20 | . . . . . 2 3 7 . 1 . 3 3 1 Highest Loss Streak 4 | . . 2 1 . 2 4 3 . 1 . 3 4 3 To Critical Strikes 1 | . . . . . . . 1 . . . . . . Average Backups 18 | 6 7 9 22 18 16 22 24 23 22 21 21 23 20 Power 1 | 1 . . 2 . . 1 1 2 2 2 1 2 2 Propulsion 1 | 4 2 1 2 1 . 1 1 1 1 1 1 1 1 Utility 8 | . 3 2 5 7 9 11 12 14 13 13 12 11 10 Weapon 4 | 1 1 4 11 7 4 6 5 2 2 2 2 5 4 Tool/Special . | . . . . . . . . . . . . . . Unused Backups 64 | . 2 4 3 16 . . 12 1 . . 7 8 11 Power 5 | . 1 . 1 2 . . . . . . . . 1 Propulsion 6 | . . . . 1 . . 4 . . . 1 . . Utility 26 | . . 2 2 6 . . 5 . . . 4 1 6 Weapon 23 | . 1 2 . 7 . . 3 1 . . 2 5 2 Tool/Special 4 | . . . . . . . . . . . . 2 2 Average Slot Usage (%) 91 | . 100 88 93 97 90 92 85 84 90 93 90 87 73 Engine 7 | . 14 12 14 13 6 6 1 . . . 2 4 . Reactor 1 | . . . . . . . 3 6 6 6 3 . 1 Treads 11 | . 28 13 . . 3 4 9 20 20 20 20 5 4 Leg 1 | . . . . . 2 15 1 . . . . . . Wheel 10 | . . 14 28 28 13 3 8 . . . . 4 5 Device 4 | . 7 2 3 . 6 6 3 2 5 6 6 7 5 Storage 8 | . 14 6 14 14 6 6 6 6 6 6 6 5 5 Processor 3 | . . . . . 5 6 6 6 6 6 6 9 8 Protection 7 | . 6 8 2 14 6 3 5 3 6 6 6 4 2 Energy Gun 3 | . 2 11 . . . . 1 12 . . . 2 4 Energy Cannon 3 | . 6 10 14 3 . . . . . . . . . Ballistic Gun 23 | . 18 6 14 22 38 35 32 24 38 40 36 27 28 Peak Build Rating 100 | 7 8 16 18 23 52 64 70 82 82 78 80 88 100 Average Rating 43 | 6 7 11 15 18 42 51 60 76 77 78 76 81 89 On Entrance 45 | 6 7 8 16 18 19 51 64 70 82 78 78 70 69 Avg Prop Armor Cover (%) 7 | . . 2 . . 5 5 10 . . . . 8 8 Naked Turns . | . . . . . . . . . . . . . . Heaviest Build 170 | 14 33 98 104 104 119 125 137 130 130 125 128 134 170 Greatest Support 128 | 40 40 40 26 26 26 70 128 128 128 128 128 128 70 Greatest Overweight (x) 7 | . . 6 3 3 4 4 7 1 1 . . 4 6 Average Overweight (x) 1 | . . 1 3 3 4 2 3 . . . . 3 3 Largest Inventory Capacity 25 | 8 15 25 25 25 25 25 25 25 25 25 25 25 25 Average Capacity 21 | 8 11 11 25 25 25 25 25 25 25 25 25 25 24 Most Carried 25 | 6 11 25 25 25 22 25 25 25 25 23 25 25 25 Average Carried 19 | 5 7 9 24 19 17 23 24 24 24 23 23 23 20 Final Capacity 25 | 8 15 25 25 25 25 25 25 25 25 25 25 25 5 Final Carried 25 | 4 10 25 25 18 22 25 23 25 23 23 25 22 5 Class Distribution -------------------- 40% | Scavenger-Executioner 37% | Mutant 8% | Subdweller-Mutant 3% | Commander-Executioner Dominant Class ---------------- Mutant | -10/Materials Subdweller-Mutant | -10/Subcaves Mutant | -8/Recycling Mutant | -8/Scraptown Derelict-Executioner | -6/Factory Scavenger-Executioner | -6/Garrison Scavenger-Executioner | -6/Factory Scavenger-Executioner | -6/Lower Caves Scavenger-Executioner | -6/Lower Caves Scavenger-Executioner | -6/Data Miner Scavenger-Executioner | -5/Proximity Caves Scavenger-Executioner | -5/Factory Scavenger-Executioner | -5/Waste Resources | -11 -10 -10 -8 -8 -6 -6 -6 -6 -6 -6 -5 -5 -5 ----------- Run | Yrd Mat Sub Rec Scr Fac Gar Fac Low Low Dat Pro Fac Was Matter Collected 8765 | 254 513 676 100 . 864 1010 1867 242 319 . 1080 1504 336 Remotely 118 | 54 64 . . . . . . . . . . . . Salvage Created 9487 | 119 918 730 427 . 637 793 1279 133 342 . 1599 1921 589 Parts 434 | 5 57 38 15 . 23 36 73 3 19 . 69 81 15 Haulers Intercepted 4 | . 2 . . . 1 . 1 . . . . . . Recyclers Shooed 4 | . . . 1 . 1 . . . . . 1 1 . Parts Field Recycled . | . . . . . . . . . . . . . . Retrieved Matter . | . . . . . . . . . . . . . . Parts Self-Destructed 112 | . . 20 . . . . . 4 24 . 64 . . Prevented 1 | . . . . . . . . . 1 . . . . Parts Restored . | . . . . . . . . . . . . . . Kills | -11 -10 -10 -8 -8 -6 -6 -6 -6 -6 -6 -5 -5 -5 ------- Run | Yrd Mat Sub Rec Scr Fac Gar Fac Low Low Dat Pro Fac Was Combat Hostiles Destroyed 140 | . 20 17 3 . 6 14 19 2 8 . 21 28 2 Guns 118 | . 14 11 3 . 6 14 17 2 8 . 21 20 2 Cannons 10 | . 6 4 . . . . . . . . . . . AOE 10 | . . . . . . . 2 . . . . 8 . Classes Destroyed 22 | 2 6 4 . . 4 1 3 . . . . 1 1 Worker 6 | . . . . . . . 3 . . . . 3 . Builder 9 | . 1 . . . 1 . 1 . . . 2 4 . Tunneler 3 | 1 . . . . . . 1 . . . . 1 . Hauler 4 | . 2 . . . 1 . 1 . . . . . . Recycler 11 | 1 . . 4 . 1 . 1 . . . 2 2 . Mechanic 1 | . . . . . . . . . . . . 1 . Operator 3 | . 2 . . . . . . . . . . 1 . Turret 2 | . . 2 . . . . . . . . . . . Watcher 10 | . 3 . . . . . 2 . . . 2 3 . Swarmer 19 | . 5 4 . . . 2 5 . 3 . . . . Grunt 64 | . 15 1 . . 2 5 8 2 4 . 12 15 . Brawler 3 | . . . . . 1 . . . . . 1 1 . Duelist 4 | . . . . . 1 . . . . . 1 2 . Protector 2 | . . . . . . . 1 . . . 1 . . Sentry 14 | . . 1 3 . . 2 1 . . . 4 3 . Demolisher 1 | . . . . . 1 . . . . . . . . Hunter 11 | . . . . . 1 4 1 . . . 2 3 . Programmer 7 | . . . . . . . 2 . 1 . . 4 . Behemoth 2 | . . . . . . 1 1 . . . . . . Compactor 2 | . . . . . . . . . . . . . 2 Artisan 1 | . . 1 . . . . . . . . . . . Subdweller 11 | . . 11 . . . . . . . . . . . Best Kill Streak 10 | 2 5 4 5 . 3 5 4 2 4 . 8 10 1 Combat Bots Only 8 | . 3 4 2 . 2 5 4 2 4 . 7 8 1 Max Kills in Single Turn 7 | 1 1 2 1 . 2 2 3 2 2 . 2 7 1 Gunslinging 1 | . . 1 . . 1 . 1 . 1 . 1 1 . Exploded 4 | . . . . . . . 2 . . . . 4 . Melee . | . . . . . . . . . . . . . . Uniques/NPCs Destroyed . | . . . . . . . . . . . . . . Combat | -11 -10 -10 -8 -8 -6 -6 -6 -6 -6 -6 -5 -5 -5 -------- Run | Yrd Mat Sub Rec Scr Fac Gar Fac Low Low Dat Pro Fac Was Hostile Shots Fired 734 | . 72 92 4 . 38 126 166 5 20 . 94 107 10 Missed 198 | . 19 23 2 . 7 46 46 2 6 . 18 29 . Hits 536 | . 53 69 2 . 31 80 120 3 14 . 76 78 10 Melee 13 | . . . . . 3 . . . . . . . 10 Projectile 523 | . 53 69 2 . 28 80 120 3 14 . 76 78 . AOE 4 | . . . . . 4 . . . . . . . . Critical Strikes 31 | . . 1 . . 3 4 8 . . . 3 7 5 Part Disruptions 1 | . . . . . . . . . . . . 1 . Damage Taken 9606 | . 581 1102 30 . 715 1468 1762 65 304 . 1220 1644 715 Core 529 | . 61 129 . . 30 78 97 . . . 19 83 32 Absorbed by Shields . | . . . . . . . . . . . . . . Reduced by Siege Mode 260 | . . . . . . . 79 . 47 . 102 . 32 Ignored by Resistances 219 | . . . . . . . 219 . . . . . . Regen/Repaired (Parts) 284 | . . . . . . . 284 . . . . . . Core Remaining (%) 65 | 100 . . . 24 . . . . . . 73 . . Volleys Fired 429 | 6 77 80 12 . 24 35 62 3 10 . 52 51 17 Largest 6 | 2 2 2 2 . 6 6 6 5 6 . 6 6 6 Hottest 214 | 40 110 160 110 . 164 162 176 181 178 . 183 214 214 Shots Fired 1521 | 12 151 132 24 . 139 158 285 16 55 . 212 248 89 Gun 1422 | 12 116 96 12 . 139 158 282 16 55 . 205 242 89 Cannon 81 | . 35 34 12 . . . . . . . . . . Launcher 4 | . . . . . . . . . . . . 4 . Special 14 | . . 2 . . . . 3 . . . 7 2 . Kinetic 1304 | 12 105 25 12 . 139 156 273 13 55 . 205 230 79 Thermal 179 | . 46 107 12 . . 2 9 3 . . . . . Explosive 4 | . . . . . . . . . . . . 4 . Electromagnetic 22 | . . . . . . . . . . . . 12 10 Robot Hit Streak 35 | 5 15 14 11 . 7 10 23 8 14 . 35 14 25 Robot Miss Streak 7 | 2 4 2 2 . 5 4 6 1 3 . 6 7 2 Penetration Max 1 | . . . . . 1 1 1 1 1 . 1 1 1 Secondary Targets 33 | . 1 2 . . 1 7 4 . 4 . 10 4 . Max Gunslinging Chain 2 | . 1 1 . . 1 1 2 . 2 . 2 1 . Shots Hit Robots 942 | 9 101 81 15 . 74 96 171 12 31 . 153 126 73 Core Hits 388 | 3 46 25 8 . 26 41 69 6 14 . 60 80 10 Critical Kills 24 | . . 2 . . 1 3 5 . 2 . 8 3 . Critical Parts Destroyed 28 | . . . . . 1 3 7 1 . . 2 13 1 Critical Strikes 60 | . . 3 . . 2 8 13 1 2 . 10 17 4 Burn 1 | . . . . . . . 1 . . . . . . Meltdown 2 | . . 2 . . . . . . . . . . . Destroy 57 | . . 1 . . 2 8 12 1 2 . 10 17 4 Melee Attacks 38 | . . . . . . 23 . . . . 7 8 . Impact 23 | . . . . . . 23 . . . . . . . Slashing 15 | . . . . . . . . . . . 7 8 . Piercing . | . . . . . . . . . . . . . . Sneak Attacks 1 | . . . . . . . . . . . . 1 . Combat Hostiles . | . . . . . . . . . . . . . . Follow-up Attacks . | . . . . . . . . . . . . . . Damage Inflicted 21072 | 98 1386 1567 388 . 1256 1759 3596 286 626 . 2866 5557 1687 Guns 17402 | 98 956 967 214 . 1256 1759 3243 286 626 . 2678 3729 1590 Cannons 1129 | . 430 525 174 . . . . . . . . . . Explosions 2375 | . . . . . . . 353 . . . 188 1737 97 Melee 88 | . . . . . . . . . . . . 88 . Ramming 78 | . . 75 . . . . . . . . . 3 . Kinetic 16234 | 98 864 227 214 . 1256 1742 3089 230 626 . 2678 3639 1571 Thermal 2933 | . 522 1265 174 . . 17 154 56 . . 188 460 97 Explosive 1630 | . . . . . . . 353 . . . . 1277 . Electromagnetic 109 | . . . . . . . . . . . . 90 19 Impact . | . . . . . . . . . . . . . . Slashing 88 | . . . . . . . . . . . . 88 . Piercing . | . . . . . . . . . . . . . . Highest Corruption 13 | . 1 3 3 . . . 1 1 1 1 1 7 13 Average Corruption 2 | . 1 2 3 . . . 1 1 1 1 1 3 9 Corruption Purged 3 | . . . . . . . . . . . . 3 . Corruption Blocked . | . . . . . . . . . . . . . . Effects 132 | . 7 52 16 . . . 7 6 7 . 8 21 8 Message Errors 28 | . 1 14 5 . . . 2 1 . . 1 4 . Matter Fused 32 | . 1 14 5 . . . . . 2 . 1 5 4 Heat Flow Errors 13 | . 1 1 1 . . . 1 . 2 . 1 5 1 Energy Discharges 22 | . 1 10 1 . . . 1 2 1 . 1 5 . Parts Fused 2 | . . 2 . . . . . . . . . . . Data Loss (minor) 17 | . 1 7 3 . . . 1 1 1 . 2 1 . Data Loss (major) 6 | . 1 1 . . . . 1 . . . 2 . 1 Misfires 5 | . 1 1 . . . . . 1 1 . . 1 . Alerts 3 | . . 1 1 . . . . 1 . . . . . Weapon Failures 4 | . . 1 . . . . 1 . . . . . 2 Overload Shots . | . . . . . . . . . . . . . . Overflow Damage 358 | . 4 . . . . . 110 . . . 42 202 . Projectiles 4 | . 4 . . . . . . . . . . . . Explosions 306 | . . . . . . . 110 . . . 42 154 . Melee 48 | . . . . . . . . . . . . 48 . Knockbacks . | . . . . . . . . . . . . . . Impact . | . . . . . . . . . . . . . . Kinetic . | . . . . . . . . . . . . . . Secondary . | . . . . . . . . . . . . . . Self-Inflicted Damage 234 | . . 75 . . . . 54 . . . . 105 . Shots 4 | . . . . . . . 1 . . . . 3 . Rammed 2 | . 1 . . . . . . . . . . 1 . Targets Rammed 3 | . 1 . . . . . . . . . . 2 . Kicked . | . . . . . . . . . . . . . . Crushed 1 | . . . . . . . . . . . . 1 . Highest Temperature 446 | . 429 188 185 . 353 43 348 269 306 . 309 344 446 Average Temperature 105 | . 119 24 63 . 94 11 101 135 122 . 109 87 223 Received Heat Transfer 2112 | . 300 321 9 . 54 264 372 9 99 . 351 333 . Effects 20 | . 3 . . . 1 . 1 . . . 6 4 5 Shutdowns 2 | . . . . . . . 1 . . . . . 1 Energy Bleed 4 | . 1 . . . 1 . . . . . 1 1 . Interference 13 | . 1 . . . . . . . . . 5 3 4 Short Circuit 1 | . 1 . . . . . . . . . . . . Siege Activations 29 | . . . . . . . 10 2 3 . 7 4 3 Total Turns 514 | . . . . . . . 100 38 68 . 181 79 48 Longest Duration 47 | . . . . . . . 28 23 29 . 47 35 21 Martial Activations . | . . . . . . . . . . . . . . Shielding Activations . | . . . . . . . . . . . . . . Robots Disrupted . | . . . . . . . . . . . . . . Combat Hostiles . | . . . . . . . . . . . . . . Robots Corrupted . | . . . . . . . . . . . . . . Combat Hostiles . | . . . . . . . . . . . . . . Parts Fried 1 | . . . . . . . . . . . . 1 . Impact Corruptions . | . . . . . . . . . . . . . . Robots Melted 2 | . . 2 . . . . . . . . . . . Combat Hostiles 2 | . . 2 . . . . . . . . . . . Parts Melted 10 | . 2 4 . . . 2 1 . . . 1 . . Heat Transferred 4479 | . 1147 2020 222 . . 37 352 111 . . 240 300 50 Parts Sabotaged . | . . . . . . . . . . . . . . Parts Stolen . | . . . . . . . . . . . . . . Parts Stripped . | . . . . . . . . . . . . . . Power Chain Reactions 1 | . . . . . . . . . . . . . 1 Alert | -11 -10 -10 -8 -8 -6 -6 -6 -6 -6 -6 -5 -5 -5 ------- Run | Yrd Mat Sub Rec Scr Fac Gar Fac Low Low Dat Pro Fac Was Maximum Alert Level 3 | . 1 . . . . 2 2 . . . . 3 1 Low Security (%) 49 | 100 90 . 100 . 100 28 . . . . . 31 . Level 1 27 | . 9 . . . . 32 35 . . . . 47 100 Level 2 21 | . . . . . . 39 64 . . . . 14 . Level 3 1 | . . . . . . . . . . . . 6 . Level 4 . | . . . . . . . . . . . . . . Level 5 . | . . . . . . . . . . . . . . High Security . | . . . . . . . . . . . . . . Max Security . | . . . . . . . . . . . . . . Peak Influence 952 | 10 236 . 48 . 120 645 598 . . . . 952 323 Initial 338 | . . . 9 . . 77 338 . . . . 179 323 Average 242 | 2 64 . 13 . 35 379 448 . . . . 320 287 Influence Increases 5565 | 10 684 230 228 . 276 668 921 99 222 . 552 1673 2 Destroy 0b10 Robot/C 3120 | . 400 160 60 . 140 380 500 80 180 . 440 780 . Destroy 0b10 Robot/NC 280 | 10 40 . 20 . 15 . 65 . . . 35 95 . Destroy Leader 614 | . 110 10 . . 52 40 142 10 30 . 30 190 . Allied During Kill 360 | . . . . . 19 42 81 9 12 . 47 150 . Successful Hack 182 | . 13 . 23 . 12 17 23 . . . . 94 . Select Force Hacks 180 | . 60 . 120 . . . . . . . . . . Disable Machine 225 | . 15 . . . 15 . 60 . . . . 135 . Anti-Garrison Action 100 | . . . . . . 100 . . . . . . . Destroy Structure 249 | . 1 . 5 . 8 44 35 . . . . 154 2 Lose Combat Pursuer 255 | . 45 60 . . 15 45 15 . . . . 75 . Influence Decreases 5340 | 10 462 431 249 . 166 133 1011 654 222 . 266 1035 701 Entered New Map 1373 | . . 107 12 . . 33 307 206 . . . 107 601 Time Decay 3257 | 10 462 324 227 . 136 . 534 448 212 . 226 618 60 Lost Part 400 | . . . 10 . 30 100 110 . 10 . 40 60 40 Lost Ally 160 | . . . . . . . 60 . . . . 100 . Purge Threat 150 | . . . . . . . . . . . . 150 . Squads Dispatched 37 | . 7 . . . 6 . 5 . . . 2 17 . Investigation 16 | . 4 . . . 1 . 2 . . . 1 8 . Extermination 7 | . . . . . 1 . 2 . . . . 4 . Reinforcement 7 | . 3 . . . 1 . . . . . 1 2 . Assault 1 | . . . . . . . 1 . . . . . . Garrison 6 | . . . . . 3 . . . . . . 3 . Intercept . | . . . . . . . . . . . . . . Searches Triggered . | . . . . . . . . . . . . . . Data Miner Redirects 3 | . . . . . . . . . . . . 3 . Construction Impeded 4 | . . . . . 1 . . . . . 1 2 . Haulers Reinforced . | . . . . . . . . . . . . . . Active Scanning Responses . | . . . . . . . . . . . . . . Cargo Convoy Interrupts . | . . . . . . . . . . . . . . Stealth | -11 -10 -10 -8 -8 -6 -6 -6 -6 -6 -6 -5 -5 -5 --------- Run | Yrd Mat Sub Rec Scr Fac Gar Fac Low Low Dat Pro Fac Was Distress Signals 8 | . 3 . . . . . 2 . . . 2 1 . Communications Jammed . | . . . . . . . . . . . . . . Distress Signals . | . . . . . . . . . . . . . . Times Spotted 208 | . 34 22 3 . 9 18 35 4 9 . 23 45 6 Peak Tracking Total 8 | . 5 4 1 . 3 6 6 4 4 . 7 8 2 Tactical Retreats 10 | . 2 3 . . 1 2 1 . . . . 1 . Traps | -11 -10 -10 -8 -8 -6 -6 -6 -6 -6 -6 -5 -5 -5 ------- Run | Yrd Mat Sub Rec Scr Fac Gar Fac Low Low Dat Pro Fac Was Traps Triggered 7 | . 4 . . . . . 1 . . . 1 1 . Indirectly . | . . . . . . . . . . . . . . Trap Hack Attempts . | . . . . . . . . . . . . . . Triggered . | . . . . . . . . . . . . . . Disarmed . | . . . . . . . . . . . . . . Reprogrammed . | . . . . . . . . . . . . . . Reused . | . . . . . . . . . . . . . . Traps Extracted . | . . . . . . . . . . . . . . Installed . | . . . . . . . . . . . . . . Triggered . | . . . . . . . . . . . . . . Machines | -11 -10 -10 -8 -8 -6 -6 -6 -6 -6 -6 -5 -5 -5 ---------- Run | Yrd Mat Sub Rec Scr Fac Gar Fac Low Low Dat Pro Fac Was Machines Disabled 21 | . 1 . . . 1 2 4 . . . 3 10 . Max in Single Turn 5 | . 1 . . . 1 1 2 . . . 1 5 . Garrison Access 1 | . . . . . . . . . . . . 1 . Garrison Relay 2 | . . . . . . 2 . . . . . . . Machines Repaired 3 | . . . . . . . . . . . . 3 . Machines Dismantled . | . . . . . . . . . . . . . . Machines Sabotaged . | . . . . . . . . . . . . . . Overloaded Fab Kills . | . . . . . . . . . . . . . . Hacking | -11 -10 -10 -8 -8 -6 -6 -6 -6 -6 -6 -5 -5 -5 --------- Run | Yrd Mat Sub Rec Scr Fac Gar Fac Low Low Dat Pro Fac Was Machines Accessed 58 | . 7 2 9 6 3 2 5 1 1 4 . 18 . Terminals 23 | . 5 . 5 . 1 2 . . . . . 10 . Fabricators 4 | . . . . . . . 1 . . . . 3 . Repair Stations 4 | . . . . . . . 3 . . . . 1 . Recycling Units 10 | . 2 . 4 . 1 . . . . . . 3 . Scanalyzers 1 | . . . . . . . 1 . . . . . . Garrison Access 2 | . . . . . 1 . . . . . . 1 . Total Hacks 165 | . 18 5 22 13 5 2 15 1 1 28 . 55 . Successful 123 | . 13 5 17 13 5 2 7 1 1 28 . 31 . Failed 41 | . 5 . 4 . . . 8 . . . . 24 . Catastrophic 11 | . 1 . 1 . . . 1 . . . . 8 . Database Lockouts 1 | . . . 1 . . . . . . . . . . Manual 82 | . 17 . 17 . 3 1 8 . . . . 36 . Terminals 75 | . 16 . 17 . 3 2 . . . . . 37 . Fabricators 8 | . . . . . . . 3 . . . . 5 . Repair Stations 12 | . . . . . . . 9 . . . . 3 . Recycling Units 15 | . 2 . 5 . 1 . . . . . . 7 . Scanalyzers 3 | . . . . . . . 3 . . . . . . Garrison Access 4 | . . . . . 1 . . . . . . 3 . Terminal Hacks 70 | . 4 5 5 13 1 2 . 1 1 28 . 10 . Record 23 | . . 4 . 8 . . . . . 11 . . . Part Schematic 10 | . . . 1 . . . . . . 8 . 1 . Robot Schematic 6 | . . . . . . . . . . 6 . . . Robot Analysis 10 | . 2 . 2 4 . . . . . . . 2 . Prototype ID Bank 5 | . . . 1 . . . . . . 3 . 1 . Open Door 3 | . . . . . . 1 . 1 1 . . . . Branch Access Points 2 | . . . . . 1 . . . . . . 1 . Terminal Index 2 | . . . 1 . . . . . . . . 1 . Repair Station Index 1 | . . . . . . . . . . . . 1 . Scanalyzer Index 1 | . . . . . . . . . . . . 1 . Unreport Threat 1 | . . . . . . . . . . . . 1 . Locate Traps 2 | . 1 . . . . . . . . . . 1 . Zone Layout 1 | . 1 . . . . . . . . . . . . Garrison Registry 1 | . . . . . . 1 . . . . . . . Proto ID Catalog 2 | . . 1 . 1 . . . . . . . . . Fabricator Hacks 5 | . . . . . . . . . . . . 5 . Load Schematic 2 | . . . . . . . . . . . . 2 . Build 3 | . . . . . . . . . . . . 3 . Repair Station Hacks 3 | . . . . . . . 2 . . . . 1 . Scan Component 2 | . . . . . . . 1 . . . . 1 . Repair 1 | . . . . . . . 1 . . . . . . Recycling Unit Hacks 4 | . . . 1 . . . . . . . . 3 . Retrieve Components 4 | . . . 1 . . . . . . . . 3 . Scanalyzer 2 | . . . . . . . 2 . . . . . . Retrieve Study 2 | . . . . . . . 2 . . . . . . Garrison Access Hacks 2 | . . . . . 1 . . . . . . 1 . Unlock Access 1 | . . . . . 1 . . . . . . . . Seal Access 1 | . . . . . . . . . . . . 1 . Unauthorized Hacks 37 | . 9 . 11 . 3 . 3 . . . . 11 . Terminals 23 | . 7 . 7 . 2 . . . . . . 7 . Botnet 7 | . 2 . 2 . 1 . . . . . . 2 . Operators 1 | . 1 . . . . . . . . . . . . Skim 15 | . 4 . 5 . 1 . . . . . . 5 . Fabricators 2 | . . . . . . . 2 . . . . . . Report 1 | . . . . . . . 1 . . . . . . Liberate 1 | . . . . . . . 1 . . . . . . Repair Stations 1 | . . . . . . . 1 . . . . . . Patch 1 | . . . . . . . 1 . . . . . . Recycling Units 10 | . 2 . 4 . 1 . . . . . . 3 . Tunnel 6 | . 2 . 4 . . . . . . . . . . Fedlink 4 | . . . . . 1 . . . . . . 3 . Scanalyzers . | . . . . . . . . . . . . . . Garrison Access 1 | . . . . . . . . . . . . 1 . Watchers 1 | . . . . . . . . . . . . 1 . Data Cores Recovered 1 | . . . . . . . . . . . . 1 . Used . | . . . . . . . . . . . . . . Hacking Detections 30 | . 5 . 4 . 2 . 4 . . . . 15 . Full Trace Events 7 | . 1 . . . . . 1 . . . . 5 . Feedback Events . | . . . . . . . . . . . . . . Feedback Blocked . | . . . . . . . . . . . . . . Robot Schematics Acquired 6 | . . . . . . . . . . 6 . . . Robots Built . | . . . . . . . . . . . . . . Authchips . | . . . . . . . . . . . . . . Time . | . . . . . . . . . . . . . . Total Robot Build Rating . | . . . . . . . . . . . . . . Part Schematics Acquired 10 | . . . 1 . . . . . . 8 . 1 . Parts Built 4 | . . . . . . . . . . . . 4 . Authchips . | . . . . . . . . . . . . . . Time 227 | . . . . . . . . . . . . 227 . Total Part Build Rating 18 | . . . . . . . . . . . . 18 . Part Studies Acquired 2 | . . . . . . . 2 . . . . . . Parts Repaired 1 | . . . . . . . 1 . . . . . . Time 62 | . . . . . . . 62 . . . . . . Parts Recycled . | . . . . . . . . . . . . . . Recycled Matter . | . . . . . . . . . . . . . . Retrieved Matter . | . . . . . . . . . . . . . . Retrieved Components 33 | . . . 6 . . . . . . . . 27 . Parts Scanalyzed . | . . . . . . . . . . . . . . Part Schematics Acquired . | . . . . . . . . . . . . . . Parts Damaged . | . . . . . . . . . . . . . . Bothacking | -11 -10 -10 -8 -8 -6 -6 -6 -6 -6 -6 -5 -5 -5 ------------ Run | Yrd Mat Sub Rec Scr Fac Gar Fac Low Low Dat Pro Fac Was Used RIF Installer 1 | . . . . . . 1 . . . . . . . Robots Hacked 3 | . . . . . . . 2 . . . . 1 . Non-combat 2 | . . . . . . . 2 . . . . . . Combat 1 | . . . . . . . . . . . . 1 . Robot Hacks Applied 3 | . . . . . . . 2 . . . . 1 . randomize_corridors 1 | . . . . . . . 1 . . . . . . locate_stockpiles 1 | . . . . . . . 1 . . . . . . overwrite_iff 1 | . . . . . . . . . . . . 1 . Relay Couplers Released 9 | . . . . . . 9 . . . . . . . Machine Destruction 9 | . . . . . . 9 . . . . . . . Attached 2 | . . . . . . . 1 . . . . 1 . Fabnet Peak Effective % . | . . . . . . . . . . . . . . Robots Rewired 6 | . . . . . . . . . . . 6 . . Allies Hacked . | . . . . . . . . . . . . . . Hacks Repelled . | . . . . . . . . . . . . . . Allies | -11 -10 -10 -8 -8 -6 -6 -6 -6 -6 -6 -5 -5 -5 -------- Run | Yrd Mat Sub Rec Scr Fac Gar Fac Low Low Dat Pro Fac Was Total Allies 12 | . . . . 1 . 1 3 . . . 6 1 . Largest Group 7 | . . . . 1 1 2 4 1 1 1 7 6 . Highest-Rated Group 336 | . . . . 60 60 106 147 56 56 56 336 288 . Highest-Rated Ally 60 | . . . . 60 60 60 60 56 56 56 56 49 . Initial UFD Resources 51 | . . . . . 23 33 33 33 33 33 35 35 51 Total Orders 10 | . . . . 2 . 2 . . 4 . 2 . . STAY 5 | . . . . 1 . 1 . . 2 . 1 . . FOLLOW 5 | . . . . 1 . 1 . . 2 . 1 . . Ally Attacks 187 | . . . . . 3 20 66 6 3 . 23 66 . Total Damage 4498 | . . . . . 101 693 1139 246 98 . 815 1406 . Kills 39 | . . . . . 1 5 11 2 1 . 2 17 . Allies Corrupted . | . . . . . . . . . . . . . . Allies Melted . | . . . . . . . . . . . . . . Intel | -11 -10 -10 -8 -8 -6 -6 -6 -6 -6 -6 -5 -5 -5 ------- Run | Yrd Mat Sub Rec Scr Fac Gar Fac Low Low Dat Pro Fac Was Active Infowar (turns) 2724 | . . . . . 347 . . 496 968 136 729 48 . Optics 141 | . . . . . 141 . . . . . . . . IFF 2327 | . . . . . . . . 496 966 136 729 . . Seismic 208 | . . . . . 206 . . . 2 . . . . Jamming 48 | . . . . . . . . . . . . 48 . Robot Analysis Total 10 | . 2 . 2 4 . . . . . . . 2 . Derelict Logs Recovered 9 | . . 1 . 5 . . . . 1 . 2 . . Drone Launches . | . . . . . . . . . . . . . . Drone Recoveries . | . . . . . . . . . . . . . . Exploration | -11 -10 -10 -8 -8 -6 -6 -6 -6 -6 -6 -5 -5 -5 ------------- Run | Yrd Mat Sub Rec Scr Fac Gar Fac Low Low Dat Pro Fac Was Turns Passed 16940 | 31 1669 2854 789 2772 587 967 1506 1216 1189 136 1013 2074 137 Spaces Moved 8518 | 8 631 1750 541 1799 284 311 626 556 567 78 371 973 23 Core . | . . . . . . . . . . . . . . Treads 3257 | 2 631 698 . . . 49 203 556 567 78 371 98 4 Legs 162 | 6 . . . . . 156 . . . . . . . Wheels 5099 | . . 1052 541 1799 284 106 423 . . . . 875 19 Hover . | . . . . . . . . . . . . . . Flight . | . . . . . . . . . . . . . . Fastest Speed 105 | 120 160 105 135 135 150 150 135 166 166 166 166 160 160 Average Speed 156 | 130 160 142 135 135 150 234 168 195 168 166 166 164 183 Slowest Speed 330 | 160 160 240 135 135 150 330 270 249 249 166 166 270 270 Overloaded Moves . | . . . . . . . . . . . . . . Propulsion Burnouts . | . . . . . . . . . . . . . . Robots Hopped . | . . . . . . . . . . . . . . Potential Cave-ins . | . . . . . . . . . . . . . . Cave-ins Triggered 1 | . . . . . . . . . . . . . 1 Exploration Rate (%) 53 | 2 96 75 97 89 8 37 18 75 73 68 51 30 28 Regions Visited 13 Branch Regions 7 Pre-discovered Areas 16 | . 2 1 4 4 . . . . . 1 . 4 . Known Exits Taken 4 | . . . 1 1 1 . 1 . . . . . . Unknown Exits Taken 7 | 1 1 1 . . . . . 1 1 1 1 . . Scrap Searched 15 | . . 6 . 4 . . . 3 1 . 1 . . Spaces Dug 27 | . . . . . . 19 . . . . 1 7 . Terrain Destroyed 140 | . . 3 5 . . 19 31 . 1 . 3 74 4 Melee 27 | . . . . . . 19 . . . . 1 7 . Projectile 40 | . . 3 5 . . . 2 . 1 . 2 23 4 AOE 73 | . . . . . . . 29 . . . . 44 . Terrain Rammed 3 | . . 3 . . . . . . . . . . . Walls Destroyed . | . . . . . . . . . . . . . . Machines Disabled 3 | . . 3 . . . . . . . . . . . Actions | -11 -10 -10 -8 -8 -6 -6 -6 -6 -6 -6 -5 -5 -5 --------- Run | Yrd Mat Sub Rec Scr Fac Gar Fac Low Low Dat Pro Fac Was Total 11212 | 18 1144 1985 580 2156 383 432 947 677 774 85 638 1315 78 Wait 1701 | . 420 59 8 308 46 17 186 105 172 8 173 182 17 Move 8505 | 7 630 1749 540 1798 283 309 625 555 566 77 370 973 23 Hop . | . . . . . . . . . . . . . . Pick Up 155 | . 6 31 9 21 10 14 21 3 5 . 11 21 3 Fast Attach 52 | 1 2 9 . 1 4 6 11 3 2 . . 11 2 Attach 63 | 2 1 5 1 2 8 9 7 2 8 . 3 11 4 Detach 19 | . . 2 . . 1 2 2 2 1 . 1 5 3 Swap 75 | . 6 17 2 . 5 9 9 . 1 . 4 18 4 Drop 143 | 2 1 24 8 26 2 7 23 4 8 . 7 26 5 Fire 429 | 6 77 80 12 . 24 35 62 3 10 . 52 51 17 Melee 38 | . . . . . . 23 . . . . 7 8 . Ram 3 | . . 3 . . . . . . . . . . . Kick . | . . . . . . . . . . . . . . Crush 3 | . 1 . . . . . . . . . . 2 . Escape Stasis . | . . . . . . . . . . . . . . Rewire 11 | . . . . . . . . . 1 . 10 . . Trap . | . . . . . . . . . . . . . . Miscellaneous 15 | . . 6 . . . 1 1 . . . . 7 . Route ------- -11/Scrapyard -10/Materials (discovered 5 exits: [*Mat x3] / [*Min] / *Sub) -10/Subcaves (discovered 4 exits: [*Mat x2] / *Rec / *Scr) -8/Recycling (discovered 2 exits: *Fac / *Scr) -8/Scraptown (discovered 2 exits: *Fac x2) -6/Factory (discovered 3 exits: Low x2 / Gar) -6/Garrison (discovered 3 exits: *Fac x3) -6/Factory (discovered 2 exits: *Fac / *Low) -6/Lower Caves -6/Lower Caves -6/Data Miner -5/Proximity Caves -5/Factory (discovered 8 exits: *Fac x4 / Upp x2 / Ext x2) -5/Waste History --------- Turn | Location | Event 18 | -11/Scrapyard | Discovered new exit (range 3) 32 | -11/Scrapyard | Entered Materials 316 | -10/Materials | Build established: Mutant 581 | -10/Materials | Discovered new exit (range 16) 692 | -10/Materials | Discovered new exit (range 10) 751 | -10/Materials | Discovered new exit (range 13) 947 | -10/Materials | Discovered new exit (range 4) 1479 | -10/Materials | Discovered new exit (range 8) 1701 | -10/Materials | Entered Subcaves 1702 | -10/Subcaves | Approached by a straggling Scientist 1885 | -10/Subcaves | Ambushed by angry Subdweller bent on revenge 2284 | -10/Subcaves | A swath of the cavern ceiling suddenly collapsed 2344 | -10/Subcaves | Shifting Twisted Machinery released Sub. Laser 2398 | -10/Subcaves | Discovered new exit (range 16) 2497 | -10/Subcaves | Discovered new exit (range 13) 2573 | -10/Subcaves | A swath of the cavern ceiling suddenly collapsed 2610 | -10/Subcaves | Core integrity fell below 50% 2655 | -10/Subcaves | Shifting Twisted Machinery released Scrap Shield 2857 | -10/Subcaves | Scientist uncovered a shortcut to Scraptown 2964 | -10/Subcaves | Build established: Subdweller-Mutant 3061 | -10/Subcaves | Discovered new exit (range 8) 3136 | -10/Subcaves | Shifting Twisted Machinery released Sub. Laser 3136 | -10/Subcaves | Shifting Twisted Machinery released Sub. Monowheel 3516 | -10/Subcaves | Visited Clippyterm 3520 | -10/Subcaves | Learned Factory stockpile data 3791 | -10/Subcaves | Visited 4L-MR0's lab 4410 | -10/Subcaves | Build established: Mutant 4555 | -10/Subcaves | Entered Recycling 4556 | -8/Recycling | Met a Zionite searching for Scraptown 4943 | -8/Recycling | Learned 2 Storage zone layouts 4979 | -8/Recycling | Identified exit to Factory 5020 | -8/Recycling | Learned Factory emergency access door positions 5028 | -8/Recycling | Identified exit to Scraptown 5058 | -8/Recycling | Learned 2 Storage zone layouts 5086 | -8/Recycling | Learned 4 Factory zone layouts 5313 | -8/Recycling | Scanned before Scraplab entrance 5332 | -8/Recycling | Entered Scraplab 5344 | -8/Recycling | Entered Scraptown 5344 | -8/Scraptown | System corruption cleaned by C-Scrubber 5572 | -8/Scraptown | Visited Cyclists 5600 | -8/Scraptown | Visited Symbiants 5743 | -8/Scraptown | Visited Fellowship of the Rings 5762 | -8/Scraptown | Visited Cave Peace 5777 | -8/Scraptown | Visited IN-MT5's Study 5807 | -8/Scraptown | Visited SPCMW 5898 | -8/Scraptown | Scanned Subdweller tech in exchange for log data 5901 | -8/Scraptown | Learned Factory stockpile data 5903 | -8/Scraptown | Learned Research stockpile data 5904 | -8/Scraptown | Learned location of 1 exit from Research 5907 | -8/Scraptown | Learned location of Zion (-7) 5971 | -8/Scraptown | Visited UFD Registry 5971 | -8/Scraptown | Registered with UFD as "Microglider" 6072 | -8/Scraptown | Guru changed UFD alias to "Thermobank" 6342 | -8/Scraptown | Entered Cyclist Reading Room 6443 | -8/Scraptown | Visited LU-1G1's Boring Crew 6462 | -8/Scraptown | Visited Scrapoid Research Area 6481 | -8/Scraptown | Visited Botcube Research 6524 | -8/Scraptown | Delivered Scrap Shield to a Scientist 6665 | -8/Scraptown | Visited Observation Area 6705 | -8/Scraptown | Visited Analyses Database 6734 | -8/Scraptown | Visited Junk Repository 6792 | -8/Scraptown | Visited Curators Association 6819 | -8/Scraptown | Visited Science Testing Area 6840 | -8/Scraptown | Visited Science Guys 6889 | -8/Scraptown | Visited Junk Repository 7021 | -8/Scraptown | Found Scrap Suit 7024 | -8/Scraptown | Found Scrap Suit 7499 | -8/Scraptown | Found Botcube 7510 | -8/Scraptown | Botcube activated 7530 | -8/Scraptown | Botcube completed mutation into treaded form, armed with 1 gun, 1 cannon. 8027 | -8/Scraptown | Met Optimus 8027 | -8/Scraptown | Accepted into 0bPrime 8116 | -8/Scraptown | Entered Factory 8116 | -6/Factory | Accompanied by 1 ally 8116 | -6/Factory | Evolved 8 slots: Propulsion x2, Utility x2, Weapon x4 8143 | -6/Factory | Identified exit to Lower Caves 8419 | -6/Factory | Build established: Derelict-Executioner 8420 | -6/Factory | Loaded intel: 8 recycling unit locations 8459 | -6/Factory | Garrison activated, responded to threat 8650 | -6/Factory | Identified exit to Garrison 8703 | -6/Factory | Entered Garrison 8703 | -6/Garrison | Accompanied by 1 ally 8746 | -6/Garrison | Installed Relay Interface Framework 8827 | -6/Garrison | Garrison Relay disabled 8894 | -6/Garrison | Build established: Scavenger-Executioner 8909 | -6/Garrison | Spotted B-75 Beast 8935 | -6/Garrison | Destroyed B-75 Beast 8958 | -6/Garrison | Lost 4 parts (1n2u1w) 8972 | -6/Garrison | Triggered checkpoint 9051 | -6/Garrison | Lost 3 parts (1n2u) 9372 | -6/Garrison | Discovered new exit (range 66) 9372 | -6/Garrison | Discovered new exit (range 85) 9372 | -6/Garrison | Discovered new exit (range 11) 9414 | -6/Garrison | Garrison Relay disabled 9591 | -6/Garrison | Rescued a captive Derelict 9670 | -6/Garrison | Entered Factory 9670 | -6/Factory | Accompanied by 2 allies 9746 | -6/Factory | Discovered new exit (range 6) 9882 | -6/Factory | Discovered exit to Lower Caves (range 5) 10677 | -6/Factory | Repaired Hvy. Siege Treads 10720 | -6/Factory | First assault squad dispatched 10743 | -6/Factory | Spotted B-75 Beast 10764 | -6/Factory | Destroyed B-75 Beast 10781 | -6/Factory | Lost 3 parts (1n2w) 11176 | -6/Factory | Entered Lower Caves 11176 | -6/Lower Caves | Accompanied by 1 ally 11178 | -6/Lower Caves | UFD Scientist delivered a prototype 11195 | -6/Lower Caves | Found Prototype Protection 11195 | -6/Lower Caves | Identified Enh. Scrap Shield 12290 | -6/Lower Caves | Discovered new exit (range 11) 12392 | -6/Lower Caves | Entered another Lower Caves area 12392 | -6/Lower Caves | Accompanied by 1 ally 12543 | -6/Lower Caves | Encountered a Warlord checkpoint 12577 | -6/Lower Caves | Learned 4 Factory zone layouts 13559 | -6/Lower Caves | Discovered new exit (range 6) 13581 | -6/Lower Caves | Entered Data Miner 13581 | -6/Data Miner | Accompanied by 1 ally 13581 | -6/Data Miner | Discovered new exit (range 6) 13613 | -6/Data Miner | Met Data Miner 13645 | -6/Data Miner | Learned location of Section 7 (-3) 13645 | -6/Data Miner | Acquired the access code to Warlord's prototype stash 13669 | -6/Data Miner | Received God Mode back door access code from Data Miner 13717 | -6/Data Miner | Entered Proximity Caves 13717 | -5/Proximity Caves | Accompanied by 1 ally 13768 | -5/Proximity Caves | Learned Factory terminal intel 13783 | -5/Proximity Caves | Learned Factory emergency access door positions 14241 | -5/Proximity Caves | Snuck into a huge 0b10 base via the rear entrance 14583 | -5/Proximity Caves | Discovered new exit (range 16) 14630 | -5/Proximity Caves | Destroyed 7 combat bots 14636 | -5/Proximity Caves | Lost 3 parts (3w) 14730 | -5/Proximity Caves | Entered Factory 14730 | -5/Factory | Accompanied by 6 allies 14730 | -5/Factory | Evolved 2 slots: Utility x2 14731 | -5/Factory | Identified exit to Upper Caves 14733 | -5/Factory | Loaded intel: 28 terminal locations 15007 | -5/Factory | Discovered new exit (range 11) 15078 | -5/Factory | Build established: Commander-Executioner 15255 | -5/Factory | Incoming investigation squad redirected 15410 | -5/Factory | Incoming investigation squad redirected 15495 | -5/Factory | Lost 3 allies 15502 | -5/Factory | Fabricated Enh. Autogun? 15516 | -5/Factory | Loaded intel: 8 recycling unit locations 15516 | -5/Factory | Learned location of Protoforge (-3) 15765 | -5/Factory | Fabricated Adv. Salvage Targeting Computer? 15795 | -5/Factory | Build established: Scavenger-Executioner 15992 | -5/Factory | Incoming investigation squad redirected 16024 | -5/Factory | Fabricated Enh. Autogun? 16269 | -5/Factory | Learned location of 1 exit from Proximity Caves 16287 | -5/Factory | Identified exit to Extension 16341 | -5/Factory | Identified exit to Factory 16401 | -5/Factory | Learned location of Extension (-5) 16492 | -5/Factory | Learned location of 1 exit from Research 16525 | -5/Factory | Learned Research emergency access door positions 16567 | -5/Factory | Learned location of 3 exits from Factory 16604 | -5/Factory | Garrison activated, responded to threat 16617 | -5/Factory | Learned location of Upper Caves (-4) 16631 | -5/Factory | Destroyed 8 combat bots 16702 | -5/Factory | Lost 4 parts (1u3w) 16804 | -5/Factory | Sucked down chute 16804 | -5/Factory | Entered Waste 16819 | -5/Waste | EMP discharged 16819 | -5/Waste | Spotted C-40 Crusher 16836 | -5/Waste | Destroyed C-40 Crusher 16855 | -5/Waste | Crushed by falling debris 16855 | -5/Waste | System corruption reached 10% 16870 | -5/Waste | Found Damper Plating 16872 | -5/Waste | Spotted C-40 Crusher 16890 | -5/Waste | Destroyed C-40 Crusher 16911 | -5/Waste | Spotted C-40 Crusher 16919 | -5/Waste | EMP discharged 16922 | -5/Waste | Spotted C-40 Crusher 16925 | -5/Waste | Crushed by Compactor (1 part destroyed) 16937 | -5/Waste | Crushed by Compactor (0 parts destroyed, 1 dropped) 16940 | -5/Waste | Crushed by Compactor (1 part destroyed, 1 dropped) 16940 | -5/Waste | Crushed by Compactor (1 part destroyed, 2 dropped) 16941 | -5/Waste | Self-destructed Last Messages --------------- 16931_ Critical hit (Destroy). 16933_ Slug penetrates C-40 Crusher. 16935_ Imp. Cooling System crushed. 16935_ Damper Plating crushed. 16936_ Slug penetrates C-40 Crusher. 16936_ Corrupted Imp. Cooling System crushed. 16937_ Enh. Autogun crushed. 16938_ Damper Plating crushed. 16939_ Dropped Damper Plating. 16939_ Dropped Matter Compressor. 16940_ Corrupted Imp. Cooling System crushed. 16940_ Huge Storage Unit crushed. 16940_ Hvy. Machine Gun crushed. 16940_ Imp. Treads crushed. 16940_ Imp. Kinecellerator crushed. 16940_ Matter Compressor crushed. 16940_ Power Sword crushed. 16940_ Antimatter Reactor crushed. 16940_ KE Penetrator crushed. 16940_ Gauss Rifle+ crushed. Map ----- +----------------------------------------------------+ | ?????????????????????????????????????????????????? | | ?????????????????????????????????????????????????? | | ?????????????????????????????????????????????????? | | ?????????????????????????????????????????????????? | | ?????????????????????????????????????????????????? | | ?????????????????????????????????????????????????? | | ?????????????????????????????????????????????????? | | ?????????????????????????????????????????????????? | | ????????????????????? ???????????????????????????? | | ??????????????????? ??????????????????????????? | | ??????????????????# #?????????????????????????? | | ??????????????????# #?????????????????????????? | | ????????????????### #?????????????????????????? | | ????????????????# #?????????????????????????? | | ????????????????# #?????????????????????????? | | ????????????????# #?????????????????????????? | | ????????????????? #?????????????????????????? | | ??????????????????# #?????????????????????????? | | ????############??# #???????????#?????????????? | | ????# #??# ##???????? #?????????????? | | ????# #### ;#??????? #?????????????? | | ????# # ####### #?????????????? | | ????# *]!! #?????????????? | | ????# CC]!! #?????????????? | | ????# CC!CC] #?????????????? | | ????# = *!!@CC| #?????????????? | | ????# # # [!*###### #?????????????? | | ????# ## !##?????? #?????????????? | | ????# ! # # #???????? #?????????????? | | ????########### # # ###???????????????????????? | | ??????????????### #???????????????????????? | | ????????????????#] # ???????????????????????? | | ????????????????# # ##??????????????????????? | | ????????????????# #?#???????????????????????? | | ????????????????# #?????????????????????????? | | ????????????????### #?????????????????????????? | | ??????????????????# #?????????????????????????? | | ??????????????????# #?????????????????????????? | | ??????????????????# #?????????????????????????? | | ??????????????????? ??????????????????????????? | | ?????????????????????#???????????????????????????? | | ?????????????????????????????????????????????????? | | ?????????????????????????????????????????????????? | | ?????????????????????????????????????????????????? | | ?????????????????????????????????????????????????? | | ?????????????????????????????????????????????????? | | ?????????????????????????????????????????????????? | | ?????????????????????????????????????????????????? | | ?????????????????????????????????????????????????? | | ?????????????????????????????????????????????????? | +----------------------------------------------------+ Best States ------------- Heat Dissipation 71 Coolant Potential 50 Energy Generation 21 Energy Capacity 325 Matter Stores 300 Matter Capacity 300 Sight Range 18 Terrain Scan Density 10 Jamming Range 14 EM Shielding 2 Armor Coverage 3200 Resistance: KI 30 Resistance: EM 90 Core Shielding 30 Evasion (%) 40 Targeting Accuracy 6 Target Analysis 6 Recoil Reduction 4 Kinecelleration 40 Salvage Targeting 4 Offensive Hacking 10 Relay Coupler Types 1 Relay Coupler Value 29 Item Schematics ----------------- Imp. Particle Charger | -8/Recycling | Hacked Combat Drone Bay | -6/Data Miner | Free Lgt. Regenerative Plating | -6/Data Miner | Free Cld. Nuclear Pulse Thruster | -6/Data Miner | Free Prc. Matter Filter | -6/Data Miner | Free Hvy. Gatling Laser | -6/Data Miner | Free Myomer Leg | -6/Data Miner | Free Adv. Thermal Shield | -6/Data Miner | Free Matter Neutralizer | -6/Data Miner | Free Enh. Autogun | -5/Factory | Hacked Robot Schematics ------------------ L-41 Fighter | -6/Data Miner | Free H-66 Slayer | -6/Data Miner | Free P-70 Sage | -6/Data Miner | Free A-15 Conveyor | -6/Data Miner | Free R-10 Processor | -6/Data Miner | Free G-67 Veteran | -6/Data Miner | Free Fabricated ------------ Enh. Autogun | x1 | -5/Factory Adv. Salvage Targeting Computer | x2 | -5/Factory | Preloaded Enh. Autogun | x1 | -5/Factory Repaired ---------- Hvy. Siege Treads | 64% | -6/Factory Studied --------- Gauss Rifle | -6/Factory | Hacked Com. Wheel | -6/Factory | Hacked Alien Tech Used ----------------- None Achievements -------------- None Challenges ------------ None Game ------ Seed NullBladeDerivative Manual? 0 Play Time 02:02:52 Cumulative 386.5 hours Start 2026.04.04 @ 16:18:07 End 2026.04.04 @ 20:18:46 Sessions 5 Manual Loads 0 Difficulty Rogue Special Mode None Game No. 321 Rogue 285 Adventurer 36 Explorer 0 Win Type - Total 5 Types 2/0/0/1/0/0/0/2/0/0 Lore% 73 Gallery% 66 Achievement% 54 Wizard Run 0 Options --------- Layout 1 ASCII 0 Keyboard 0 Movement Numpad Keybinds 0 Fullscreen 1 Font 48/Smallcaps Map View 50x35 Zoom Use 0% Tactical HUD 1 Map Filters NONE Filters NONE Steam 1 RUN: a6593e48-af1d-4630-9c51-9786cb82c61e